[Event "*** Titled Tuesday Blitz"]
[Site "Chess.com"]
[Date "2021.03.09"]
[Round "4"]
[White "iturrizaga"]
[Black "lachesisQ"]
[Result "0-1"]
[WhiteElo "2837"]
[BlackElo "3087"]
[TimeControl "180+1"]
[EndTime "10:43:05 PST"]
[Termination "lachesisQ won on time"]

1. c4 {[%clk 0:03:00.9]} 1... e5 {[%clk 0:02:56.9]} 2. g3 {[%clk 0:03:01.2]}
2... Nf6 {[%clk 0:02:57.5]} 3. Bg2 {[%clk 0:03:01.6]} 3... c6 {[%clk 0:02:58.2]}
4. Nf3 {[%clk 0:03:01.5]} 4... e4 {[%clk 0:02:58.3]} 5. Nd4 {[%clk 0:03:01.8]}
5... d5 {[%clk 0:02:58.6]} 6. cxd5 {[%clk 0:03:00.9]} 6... Qxd5 {[%clk
0:02:59.5]} 7. e3 {[%clk 0:02:59.9]} 7... Na6 {[%clk 0:02:51.5]} 8. Nc3 {[%clk
0:02:58.9]} 8... Qe5 {[%clk 0:02:51.7]} 9. O-O {[%clk 0:02:51.8]} 9... Be7
{[%clk 0:02:49.5]} 10. d3 {[%clk 0:02:50.2]} 10... exd3 {[%clk 0:02:49]} 11.
Qxd3 {[%clk 0:02:51.1]} 11... O-O {[%clk 0:02:48.6]} 12. h3 {[%clk 0:02:45.3]}
12... Rd8 {[%clk 0:02:47.6]} 13. Qe2 {[%clk 0:02:31.3]} 13... Bc5 {[%clk
0:02:42.2]} 14. Nb3 {[%clk 0:02:22.6]} 14... Bb6 {[%clk 0:02:38.7]} 15. Kh2
{[%clk 0:02:18.8]} 15... Nb4 {[%clk 0:02:34.8]} 16. e4 {[%clk 0:02:14]} 16...
Nd3 {[%clk 0:02:34.8]} 17. f4 {[%clk 0:02:00.5]} 17... Nxc1 {[%clk 0:02:34.8]}
18. Raxc1 {[%clk 0:01:57.2]} 18... Qe7 {[%clk 0:02:19.3]} 19. e5 {[%clk
0:01:54.4]} 19... Nd5 {[%clk 0:02:19]} 20. Nxd5 {[%clk 0:01:45.7]} 20... cxd5
{[%clk 0:02:19.9]} 21. Qd3 {[%clk 0:01:46]} 21... g6 {[%clk 0:01:42.8]} 22. Nd4
{[%clk 0:01:44.6]} 22... Bxd4 {[%clk 0:01:40.5]} 23. Qxd4 {[%clk 0:01:44]} 23...
Bf5 {[%clk 0:01:41.2]} 24. Rc3 {[%clk 0:01:29.3]} 24... Be4 {[%clk 0:01:39.6]}
25. Rfc1 {[%clk 0:01:25.3]} 25... Qe6 {[%clk 0:01:36.2]} 26. h4 {[%clk
0:00:53.7]} 26... Bxg2 {[%clk 0:01:32.5]} 27. Kxg2 {[%clk 0:00:53.3]} 27... h5
{[%clk 0:01:33.2]} 28. Rc7 {[%clk 0:00:49.2]} 28... Rac8 {[%clk 0:01:33]} 29.
Rxc8 {[%clk 0:00:44.9]} 29... Rxc8 {[%clk 0:01:33.9]} 30. Rxc8+ {[%clk
0:00:45.2]} 30... Qxc8 {[%clk 0:01:34.8]} 31. Qxd5 {[%clk 0:00:44.1]} 31... Qc2+
{[%clk 0:01:34.8]} 32. Kh3 {[%clk 0:00:36.9]} 32... Qxb2 {[%clk 0:01:35.1]} 33.
Qd8+ {[%clk 0:00:30]} 33... Kh7 {[%clk 0:01:31.6]} 34. Qd5 {[%clk 0:00:26.7]}
34... Kg7 {[%clk 0:01:27.9]} 35. e6 {[%clk 0:00:24.5]} 35... Qf6 {[%clk
0:01:26.2]} 36. e7 {[%clk 0:00:10.5]} 36... Qxe7 {[%clk 0:01:25.7]} 37. Qd4+
{[%clk 0:00:11]} 37... Kh7 {[%clk 0:01:16.2]} 38. Qxa7 {[%clk 0:00:11.9]} 38...
Qe4 {[%clk 0:01:16.1]} 39. Kh2 {[%clk 0:00:11.5]} 39... Qe2+ {[%clk 0:01:10.8]}
40. Kg1 {[%clk 0:00:11.7]} 40... Qf3 {[%clk 0:01:10.3]} 41. Qf2 {[%clk
0:00:11.6]} 41... Qe4 {[%clk 0:01:08.9]} 42. Qg2 {[%clk 0:00:11.5]} 42... Qb1+
{[%clk 0:01:06.5]} 43. Kh2 {[%clk 0:00:11.2]} 43... Qb5 {[%clk 0:01:05.7]} 44.
Qd2 {[%clk 0:00:10.7]} 44... Qc4 {[%clk 0:01:03.6]} 45. Kg2 {[%clk 0:00:10.2]}
45... b5 {[%clk 0:01:03.4]} 46. Kf2 {[%clk 0:00:09.7]} 46... b4 {[%clk 0:01:03]}
47. Qe2 {[%clk 0:00:10.2]} 47... Qd5 {[%clk 0:00:59.9]} 48. Qc2 {[%clk
0:00:08.4]} 48... Qd4+ {[%clk 0:00:58.6]} 49. Kf3 {[%clk 0:00:05.5]} 49... Kg7
{[%clk 0:00:59.2]} 50. Qb3 {[%clk 0:00:05.3]} 50... Qc5 {[%clk 0:00:53.1]} 51.
Qe3 {[%clk 0:00:04.4]} 51... Qd5+ {[%clk 0:00:51.8]} 52. Qe4 {[%clk 0:00:04.8]}
52... Qd1+ {[%clk 0:00:49.7]} 53. Qe2 {[%clk 0:00:04.6]} 53... Qh1+ {[%clk
0:00:47.3]} 54. Qg2 {[%clk 0:00:05]} 54... Qb1 {[%clk 0:00:45.8]} 55. Qe2 {[%clk
0:00:05.4]} 55... Kf8 {[%clk 0:00:44.3]} 56. Qc4 {[%clk 0:00:04.4]} 56... Qh1+
{[%clk 0:00:43]} 57. Kf2 {[%clk 0:00:04.8]} 57... Qh2+ {[%clk 0:00:41.6]} 58.
Kf3 {[%clk 0:00:04.6]} 58... Qb2 {[%clk 0:00:42.5]} 59. Qc5+ {[%clk 0:00:03.7]}
59... Kg8 {[%clk 0:00:41.6]} 60. Qc8+ {[%clk 0:00:03.7]} 60... Kg7 {[%clk
0:00:41.8]} 61. Qc4 {[%clk 0:00:04.6]} 61... Qd2 {[%clk 0:00:39.3]} 62. Qb3
{[%clk 0:00:05.5]} 62... Kf6 {[%clk 0:00:38.6]} 63. Qc4 {[%clk 0:00:04.6]} 63...
Qd6 {[%clk 0:00:36.6]} 64. Qe2 {[%clk 0:00:04.4]} 64... Qd5+ {[%clk 0:00:35.6]}
65. Qe4 {[%clk 0:00:04.8]} 65... Qd1+ {[%clk 0:00:33.8]} 66. Qe2 {[%clk
0:00:04.5]} 66... Qxe2+ {[%clk 0:00:33.2]} 67. Kxe2 {[%clk 0:00:04.7]} 67... Kf5
{[%clk 0:00:33.7]} 68. Kf3 {[%clk 0:00:04.9]} 68... f6 {[%clk 0:00:33.8]} 69.
Ke3 {[%clk 0:00:05.1]} 69... Kg4 {[%clk 0:00:33.8]} 70. Kf2 {[%clk 0:00:05.2]}
70... Kh3 {[%clk 0:00:33.9]} 71. f5 {[%clk 0:00:05.5]} 71... gxf5 {[%clk
0:00:33.2]} 72. Kf3 {[%clk 0:00:06]} 72... Kh2 {[%clk 0:00:32.2]} 73. Kf4 {[%clk
0:00:02.5]} 73... Kg2 {[%clk 0:00:32.3]} 74. Kxf5 {[%clk 0:00:01.4]} 74... Kxg3
{[%clk 0:00:32.6]} 75. Kxf6 {[%clk 0:00:02.2]} 75... Kxh4 {[%clk 0:00:32.8]} 76.
Ke5 {[%clk 0:00:03.1]} 76... Kg3 {[%clk 0:00:32]} 0-1

[Event "*** Titled Tuesday Blitz"]
[Site "Chess.com"]
[Date "2021.03.09"]
[Round "4"]
[White "ShahMatKanal"]
[Black "ymoy"]
[Result "1/2-1/2"]
[WhiteElo "2497"]
[BlackElo "2635"]
[TimeControl "180+1"]
[EndTime "10:43:07 PST"]
[Termination "Game drawn - insufficient material"]

1. e4 {[%clk 0:03:00.9]} 1... c5 {[%clk 0:02:59.6]} 2. Nf3 {[%clk 0:03:00.2]}
2... d6 {[%clk 0:02:59.8]} 3. Bb5+ {[%clk 0:02:56.7]} 3... Bd7 {[%clk
0:02:59.5]} 4. Bxd7+ {[%clk 0:02:56.8]} 4... Qxd7 {[%clk 0:03:00.4]} 5. O-O
{[%clk 0:02:57]} 5... Nc6 {[%clk 0:03:00.9]} 6. c4 {[%clk 0:02:55]} 6... Nf6
{[%clk 0:03:00.4]} 7. Nc3 {[%clk 0:02:55]} 7... e5 {[%clk 0:02:56.7]} 8. d3
{[%clk 0:02:53.4]} 8... h6 {[%clk 0:02:56.6]} 9. Rb1 {[%clk 0:02:50.4]} 9... a5
{[%clk 0:02:55.4]} 10. Ne1 {[%clk 0:02:44.4]} 10... g5 {[%clk 0:02:50.2]} 11.
Nc2 {[%clk 0:02:42.3]} 11... Nd4 {[%clk 0:02:45.8]} 12. a3 {[%clk 0:02:38.3]}
12... Nxc2 {[%clk 0:02:40.1]} 13. Qxc2 {[%clk 0:02:37.8]} 13... a4 {[%clk
0:02:41]} 14. b3 {[%clk 0:02:30.5]} 14... axb3 {[%clk 0:02:28.7]} 15. Qxb3
{[%clk 0:02:30.8]} 15... Rb8 {[%clk 0:02:26.4]} 16. a4 {[%clk 0:02:14.6]} 16...
Be7 {[%clk 0:02:24.1]} 17. Nd1 {[%clk 0:01:56.7]} 17... O-O {[%clk 0:02:04.9]}
18. Ne3 {[%clk 0:01:56.7]} 18... Kh7 {[%clk 0:02:04.7]} 19. Nf5 {[%clk
0:01:55.5]} 19... Bd8 {[%clk 0:02:02.7]} 20. Bd2 {[%clk 0:01:51.6]} 20... Ng8
{[%clk 0:01:59]} 21. g3 {[%clk 0:01:20.5]} 21... Ne7 {[%clk 0:01:58.3]} 22. Ne3
{[%clk 0:01:20.1]} 22... f5 {[%clk 0:01:45.7]} 23. f4 {[%clk 0:01:17.2]} 23...
gxf4 {[%clk 0:01:05.3]} 24. gxf4 {[%clk 0:01:13.7]} 24... fxe4 {[%clk 0:01:01]}
25. fxe5 {[%clk 0:00:54.3]} 25... Rxf1+ {[%clk 0:01:00.3]} 26. Rxf1 {[%clk
0:00:55.2]} 26... Ng6 {[%clk 0:01:01.2]} 27. exd6 {[%clk 0:00:49.4]} 27... Bg5
{[%clk 0:00:56.8]} 28. Nd5 {[%clk 0:00:44.4]} 28... Qg4+ {[%clk 0:00:49.6]} 29.
Kh1 {[%clk 0:00:43.7]} 29... Nh4 {[%clk 0:00:48.3]} 30. Rf2 {[%clk 0:00:16.7]}
30... Bxd2 {[%clk 0:00:39.4]} 31. Nf6+ {[%clk 0:00:16.3]} 31... Kg6 {[%clk
0:00:36.2]} 32. Nxg4 {[%clk 0:00:16.5]} 32... e3 {[%clk 0:00:37.1]} 33. Rf6+
{[%clk 0:00:12.6]} 33... Kg5 {[%clk 0:00:36.7]} 34. Qd1 {[%clk 0:00:13.1]} 34...
h5 {[%clk 0:00:35.5]} 35. Re6 {[%clk 0:00:05.4]} 35... hxg4 {[%clk 0:00:35.3]}
36. Qe2 {[%clk 0:00:04.5]} 36... Rf8 {[%clk 0:00:33.3]} 37. Rxe3 {[%clk
0:00:03.8]} 37... Bxe3 {[%clk 0:00:29.5]} 38. Qxe3+ {[%clk 0:00:04.7]} 38... Kg6
{[%clk 0:00:29]} 39. Qe6+ {[%clk 0:00:04.3]} 39... Kh5 {[%clk 0:00:27.3]} 40.
Qe5+ {[%clk 0:00:03.1]} 40... Kg6 {[%clk 0:00:23.4]} 41. Qe4+ {[%clk 0:00:02.7]}
41... Nf5 {[%clk 0:00:18.9]} 42. Kg1 {[%clk 0:00:03.6]} 42... Rd8 {[%clk
0:00:17.9]} 43. Qxg4+ {[%clk 0:00:03.8]} 43... Kf6 {[%clk 0:00:18.5]} 44. Qe4
{[%clk 0:00:02.4]} 44... Rxd6 {[%clk 0:00:18.6]} 45. Qxb7 {[%clk 0:00:02.4]}
45... Rxd3 {[%clk 0:00:19]} 46. Qc6+ {[%clk 0:00:02.6]} 46... Kg5 {[%clk
0:00:19.5]} 47. Qxc5 {[%clk 0:00:02.9]} 47... Rd1+ {[%clk 0:00:19.9]} 48. Kf2
{[%clk 0:00:03.1]} 48... Rd2+ {[%clk 0:00:20.8]} 49. Ke1 {[%clk 0:00:02.8]}
49... Ra2 {[%clk 0:00:18.1]} 50. h4+ {[%clk 0:00:03]} 50... Kg4 {[%clk
0:00:17.2]} 51. h5 {[%clk 0:00:02.7]} 51... Ra1+ {[%clk 0:00:12.3]} 52. Kd2
{[%clk 0:00:02.4]} 52... Rh1 {[%clk 0:00:13.2]} 53. h6 {[%clk 0:00:02.1]} 53...
Rxh6 {[%clk 0:00:13.1]} 54. Kc3 {[%clk 0:00:02.4]} 54... Rh3+ {[%clk 0:00:13]}
55. Kb4 {[%clk 0:00:02.3]} 55... Rh1 {[%clk 0:00:12.6]} 56. Qd5 {[%clk
0:00:02.4]} 56... Rb1+ {[%clk 0:00:12.7]} 57. Kc5 {[%clk 0:00:02.9]} 57... Re1
{[%clk 0:00:12.4]} 58. Qg8+ {[%clk 0:00:02.6]} 58... Kf4 {[%clk 0:00:12.6]} 59.
a5 {[%clk 0:00:03.5]} 59... Re5+ {[%clk 0:00:11.7]} 60. Kb4 {[%clk 0:00:03.8]}
60... Nd4 {[%clk 0:00:11.2]} 61. Qf8+ {[%clk 0:00:02.8]} 61... Ke4 {[%clk
0:00:11.3]} 62. Kc3 {[%clk 0:00:02.9]} 62... Rxa5 {[%clk 0:00:10.1]} 63. Qe8+
{[%clk 0:00:02.4]} 63... Re5 {[%clk 0:00:10.6]} 64. Qxe5+ {[%clk 0:00:01.9]}
64... Kxe5 {[%clk 0:00:10.5]} 65. c5 {[%clk 0:00:02.4]} 65... Nc6 {[%clk
0:00:11.4]} 66. Kc4 {[%clk 0:00:02.2]} 66... Ke6 {[%clk 0:00:11.5]} 67. Kb5
{[%clk 0:00:03.1]} 67... Kd7 {[%clk 0:00:12.4]} 68. Kb6 {[%clk 0:00:03.4]} 68...
Nd4 {[%clk 0:00:13.3]} 69. c6+ {[%clk 0:00:03]} 69... Nxc6 {[%clk 0:00:14.2]}
1/2-1/2

[Event "*** Titled Tuesday Blitz"]
[Site "Chess.com"]
[Date "2021.03.09"]
[Round "4"]
[White "elextranjero00"]
[Black "shnitez"]
[Result "1/2-1/2"]
[WhiteElo "2648"]
[BlackElo "2499"]
[TimeControl "180+1"]
[EndTime "10:43:10 PST"]
[Termination "Game drawn by stalemate"]

1. e4 {[%clk 0:03:00.9]} 1... c5 {[%clk 0:02:58.8]} 2. Nf3 {[%clk 0:03:00.3]}
2... e6 {[%clk 0:02:57.2]} 3. g3 {[%clk 0:02:55.4]} 3... Nf6 {[%clk 0:02:51.7]}
4. Qe2 {[%clk 0:02:54.7]} 4... Nc6 {[%clk 0:02:48.9]} 5. Bg2 {[%clk 0:02:54]}
5... d5 {[%clk 0:02:46.9]} 6. d3 {[%clk 0:02:45.7]} 6... Be7 {[%clk 0:02:42.6]}
7. O-O {[%clk 0:02:43.2]} 7... O-O {[%clk 0:02:40.5]} 8. e5 {[%clk 0:02:43.2]}
8... Nd7 {[%clk 0:02:39.5]} 9. c4 {[%clk 0:02:43.4]} 9... dxc4 {[%clk 0:02:18]}
10. dxc4 {[%clk 0:02:42.9]} 10... Qc7 {[%clk 0:02:18.6]} 11. Bf4 {[%clk
0:02:40.5]} 11... Rd8 {[%clk 0:02:12.2]} 12. Nc3 {[%clk 0:02:39.1]} 12... a6
{[%clk 0:02:00.4]} 13. Rad1 {[%clk 0:02:25.8]} 13... Rb8 {[%clk 0:01:32.9]} 14.
h4 {[%clk 0:01:34.7]} 14... b5 {[%clk 0:01:10.7]} 15. Nd5 {[%clk 0:01:30.6]}
15... Qa5 {[%clk 0:00:42.4]} 16. Nxe7+ {[%clk 0:01:23]} 16... Nxe7 {[%clk
0:00:43.3]} 17. Ng5 {[%clk 0:01:08.4]} 17... Nf8 {[%clk 0:00:32.3]} 18. Rxd8
{[%clk 0:01:02.7]} 18... Qxd8 {[%clk 0:00:33.2]} 19. Ne4 {[%clk 0:00:53.5]}
19... bxc4 {[%clk 0:00:27]} 20. Nd6 {[%clk 0:00:51.4]} 20... Nd5 {[%clk
0:00:19.9]} 21. Bc1 {[%clk 0:00:39.9]} 21... c3 {[%clk 0:00:17.3]} 22. bxc3
{[%clk 0:00:36.9]} 22... Ne7 {[%clk 0:00:10.8]} 23. Rd1 {[%clk 0:00:24.9]} 23...
Qc7 {[%clk 0:00:09.5]} 24. h5 {[%clk 0:00:19.2]} 24... h6 {[%clk 0:00:08.8]} 25.
Qg4 {[%clk 0:00:17.3]} 25... Nf5 {[%clk 0:00:08.7]} 26. Qf4 {[%clk 0:00:11.3]}
26... Nh7 {[%clk 0:00:06.8]} 27. g4 {[%clk 0:00:10.4]} 27... Nxd6 {[%clk
0:00:07.1]} 28. exd6 {[%clk 0:00:11.3]} 28... Qd7 {[%clk 0:00:07.2]} 29. Be3
{[%clk 0:00:09.3]} 29... Bb7 {[%clk 0:00:07]} 30. Bxb7 {[%clk 0:00:08.2]} 30...
Rxb7 {[%clk 0:00:07.9]} 31. Bxc5 {[%clk 0:00:08.4]} 31... e5 {[%clk 0:00:08]}
32. Qf3 {[%clk 0:00:07.2]} 32... Ng5 {[%clk 0:00:07.4]} 33. Qf5 {[%clk
0:00:07.2]} 33... Qxf5 {[%clk 0:00:06.6]} 34. gxf5 {[%clk 0:00:07.1]} 34... Rd7
{[%clk 0:00:07.2]} 35. Rb1 {[%clk 0:00:06.3]} 35... Nh3+ {[%clk 0:00:05.2]} 36.
Kf1 {[%clk 0:00:05.7]} 36... Nf4 {[%clk 0:00:06.1]} 37. Rb6 {[%clk 0:00:05.1]}
37... f6 {[%clk 0:00:05.9]} 38. Rc6 {[%clk 0:00:04.4]} 38... Kf7 {[%clk
0:00:05]} 39. Ke1 {[%clk 0:00:03.3]} 39... Nxh5 {[%clk 0:00:04.7]} 40. Ke2
{[%clk 0:00:03.6]} 40... Nf4+ {[%clk 0:00:04.6]} 41. Ke3 {[%clk 0:00:04.2]}
41... Nd5+ {[%clk 0:00:04.9]} 42. Ke4 {[%clk 0:00:03.7]} 42... Nxc3+ {[%clk
0:00:05]} 43. Kd3 {[%clk 0:00:04.4]} 43... Nd5 {[%clk 0:00:04.7]} 44. Kc4 {[%clk
0:00:04.6]} 44... Nf4 {[%clk 0:00:03.1]} 45. Rxa6 {[%clk 0:00:04.7]} 45... h5
{[%clk 0:00:03.1]} 46. f3 {[%clk 0:00:04.1]} 46... g5 {[%clk 0:00:03.2]} 47.
fxg6+ {[%clk 0:00:03.9]} 47... Nxg6 {[%clk 0:00:03.2]} 48. Rc6 {[%clk
0:00:04.4]} 48... h4 {[%clk 0:00:03.2]} 49. Rc7 {[%clk 0:00:04.8]} 49... Nf8
{[%clk 0:00:03.6]} 50. a4 {[%clk 0:00:04.8]} 50... Ke6 {[%clk 0:00:04]} 51. a5
{[%clk 0:00:04.5]} 51... h3 {[%clk 0:00:04.5]} 52. Bg1 {[%clk 0:00:04.3]} 52...
Kxd6 {[%clk 0:00:03.5]} 53. Rxd7+ {[%clk 0:00:04.4]} 53... Kxd7 {[%clk
0:00:04.4]} 54. a6 {[%clk 0:00:04.9]} 54... Kc6 {[%clk 0:00:04.6]} 55. a7 {[%clk
0:00:05.5]} 55... Kb7 {[%clk 0:00:04.6]} 56. Kd5 {[%clk 0:00:06.1]} 56... Nd7
{[%clk 0:00:04.9]} 57. Ke6 {[%clk 0:00:06.1]} 57... Nb6 {[%clk 0:00:05.5]} 58.
Kxf6 {[%clk 0:00:04.8]} 58... Nd5+ {[%clk 0:00:05.7]} 59. Kxe5 {[%clk 0:00:05]}
59... Ne3 {[%clk 0:00:06]} 60. Kf4 {[%clk 0:00:04.8]} 60... Ng2+ {[%clk
0:00:05.7]} 61. Kg3 {[%clk 0:00:04.9]} 61... Ne1 {[%clk 0:00:05.1]} 62. f4
{[%clk 0:00:05.2]} 62... Nd3 {[%clk 0:00:05.3]} 63. f5 {[%clk 0:00:05.1]} 63...
Ne5 {[%clk 0:00:04.8]} 64. f6 {[%clk 0:00:05.3]} 64... Nf7 {[%clk 0:00:03.9]}
65. Kxh3 {[%clk 0:00:05.5]} 65... Ng5+ {[%clk 0:00:03.6]} 66. Kg4 {[%clk
0:00:06]} 66... Nf7 {[%clk 0:00:02.4]} 67. Kf5 {[%clk 0:00:06.2]} 67... Nd6+
{[%clk 0:00:02.7]} 68. Ke6 {[%clk 0:00:06.3]} 68... Ne4 {[%clk 0:00:01.6]} 69.
f7 {[%clk 0:00:02.8]} 69... Ng5+ {[%clk 0:00:01.5]} 70. Ke7 {[%clk 0:00:03.2]}
70... Nxf7 {[%clk 0:00:02.4]} 71. Kxf7 {[%clk 0:00:04.1]} 71... Ka8 {[%clk
0:00:03.3]} 72. Ke6 {[%clk 0:00:04.7]} 72... Kb7 {[%clk 0:00:04.2]} 73. Kd6
{[%clk 0:00:05.3]} 73... Ka8 {[%clk 0:00:05.1]} 74. Kc7 {[%clk 0:00:05.6]}
1/2-1/2

[Event "*** Titled Tuesday Blitz"]
[Site "Chess.com"]
[Date "2021.03.09"]
[Round "4"]
[White "Maddie"]
[Black "fabianvivasz"]
[Result "1/2-1/2"]
[WhiteElo "2070"]
[BlackElo "2280"]
[TimeControl "180+1"]
[EndTime "10:43:19 PST"]
[Termination "Game drawn by stalemate"]

1. d4 {[%clk 0:02:58]} 1... Nf6 {[%clk 0:02:58.3]} 2. c4 {[%clk 0:02:57.8]} 2...
c5 {[%clk 0:02:56.6]} 3. d5 {[%clk 0:02:56.9]} 3... b5 {[%clk 0:02:56.8]} 4.
cxb5 {[%clk 0:02:56.5]} 4... a6 {[%clk 0:02:56.6]} 5. bxa6 {[%clk 0:02:57]} 5...
g6 {[%clk 0:02:56.6]} 6. Nc3 {[%clk 0:02:55.2]} 6... Bg7 {[%clk 0:02:55.8]} 7.
g3 {[%clk 0:02:55.4]} 7... Bxa6 {[%clk 0:02:52.9]} 8. Bg2 {[%clk 0:02:55.4]}
8... d6 {[%clk 0:02:53.2]} 9. Nf3 {[%clk 0:02:55.1]} 9... Nbd7 {[%clk
0:02:52.5]} 10. O-O {[%clk 0:02:54.6]} 10... Nb6 {[%clk 0:02:50]} 11. Re1 {[%clk
0:02:52.3]} 11... O-O {[%clk 0:02:43.5]} 12. Nd2 {[%clk 0:02:51.4]} 12... Ra7
{[%clk 0:02:06.3]} 13. e4 {[%clk 0:02:44.3]} 13... Nfd7 {[%clk 0:02:01.7]} 14.
f4 {[%clk 0:02:41.5]} 14... c4 {[%clk 0:01:38.8]} 15. Bf1 {[%clk 0:02:23]} 15...
Nc5 {[%clk 0:01:37.9]} 16. a4 {[%clk 0:01:41.8]} 16... Nd3 {[%clk 0:01:24.3]}
17. Bxd3 {[%clk 0:01:38.1]} 17... cxd3 {[%clk 0:01:25.2]} 18. Nf3 {[%clk
0:01:28]} 18... Qc7 {[%clk 0:01:15.8]} 19. Be3 {[%clk 0:01:27.4]} 19... Rb7
{[%clk 0:01:07.3]} 20. Rc1 {[%clk 0:01:21.4]} 20... Nc4 {[%clk 0:01:05.9]} 21.
Nb5 {[%clk 0:01:16.9]} 21... Bxb5 {[%clk 0:01:00.1]} 22. axb5 {[%clk 0:01:16]}
22... Bxb2 {[%clk 0:00:58.9]} 23. Qxd3 {[%clk 0:01:02.5]} 23... Bxc1 {[%clk
0:00:47.8]} 24. Rxc1 {[%clk 0:01:01.3]} 24... Rc8 {[%clk 0:00:20.5]} 25. Nd2
{[%clk 0:00:47.4]} 25... Qa5 {[%clk 0:00:14.8]} 26. Rxc4 {[%clk 0:00:44.9]}
26... Rxc4 {[%clk 0:00:13.4]} 27. Qxc4 {[%clk 0:00:44]} 27... Qxb5 {[%clk
0:00:08.1]} 28. Qc8+ {[%clk 0:00:40.1]} 28... Kg7 {[%clk 0:00:08.1]} 29. Bd4+
{[%clk 0:00:40.4]} 29... f6 {[%clk 0:00:08.2]} 30. e5 {[%clk 0:00:38.9]} 30...
Qxd5 {[%clk 0:00:04.5]} 31. exf6+ {[%clk 0:00:36.2]} 31... exf6 {[%clk
0:00:04.6]} 32. Bc3 {[%clk 0:00:26.4]} 32... Qc5+ {[%clk 0:00:03.9]} 33. Qxc5
{[%clk 0:00:25.4]} 33... dxc5 {[%clk 0:00:04.8]} 34. Kf2 {[%clk 0:00:24.7]}
34... Kf7 {[%clk 0:00:04.6]} 35. Ke3 {[%clk 0:00:25]} 35... f5 {[%clk
0:00:04.8]} 36. Nc4 {[%clk 0:00:24.9]} 36... Re7+ {[%clk 0:00:05.1]} 37. Ne5+
{[%clk 0:00:24.4]} 37... Ke6 {[%clk 0:00:05.5]} 38. Kd3 {[%clk 0:00:24.5]} 38...
Kd5 {[%clk 0:00:05.9]} 39. Bb2 {[%clk 0:00:23.8]} 39... Rb7 {[%clk 0:00:05.9]}
40. Bc3 {[%clk 0:00:24]} 40... Rb3 {[%clk 0:00:06.2]} 41. Kc2 {[%clk 0:00:24.1]}
41... Ra3 {[%clk 0:00:06.5]} 42. Kb2 {[%clk 0:00:23.8]} 42... Ra4 {[%clk
0:00:06.3]} 43. Kb3 {[%clk 0:00:21.9]} 43... Re4 {[%clk 0:00:06.8]} 44. Nf7
{[%clk 0:00:17.9]} 44... Re2 {[%clk 0:00:06.5]} 45. h4 {[%clk 0:00:18.1]} 45...
Rg2 {[%clk 0:00:06.1]} 46. Bf6 {[%clk 0:00:18.1]} 46... Rxg3+ {[%clk 0:00:06.2]}
47. Kc2 {[%clk 0:00:17.4]} 47... Rf3 {[%clk 0:00:06.6]} 48. Bg5 {[%clk
0:00:17.6]} 48... Kd4 {[%clk 0:00:04.7]} 49. Ne5 {[%clk 0:00:17.5]} 49... Rf2+
{[%clk 0:00:04.4]} 50. Kd1 {[%clk 0:00:16.9]} 50... Ke3 {[%clk 0:00:03.9]} 51.
Nc4+ {[%clk 0:00:16.5]} 51... Kd3 {[%clk 0:00:04.1]} 52. Ne5+ {[%clk 0:00:14.9]}
52... Kd4 {[%clk 0:00:04.5]} 53. Ke1 {[%clk 0:00:15.2]} 53... Rh2 {[%clk
0:00:03.8]} 54. Nf3+ {[%clk 0:00:15]} 54... Ke3 {[%clk 0:00:03.8]} 55. Nxh2
{[%clk 0:00:15.9]} 55... c4 {[%clk 0:00:04.5]} 56. Kd1 {[%clk 0:00:15.9]} 56...
Kf2 {[%clk 0:00:04.6]} 57. Kc2 {[%clk 0:00:15.6]} 57... Kg2 {[%clk 0:00:05.1]}
58. Kc3 {[%clk 0:00:16.1]} 58... Kxh2 {[%clk 0:00:05.4]} 59. Kxc4 {[%clk
0:00:16.6]} 59... Kg3 {[%clk 0:00:05.9]} 60. Kd5 {[%clk 0:00:17.2]} 60... Kg4
{[%clk 0:00:03.9]} 61. Ke6 {[%clk 0:00:17.5]} 61... Kh5 {[%clk 0:00:03]} 62. Kf6
{[%clk 0:00:17.4]} 62... h6 {[%clk 0:00:03.3]} 63. Kg7 {[%clk 0:00:16.9]} 63...
hxg5 {[%clk 0:00:03.5]} 64. hxg5 {[%clk 0:00:17.4]} 64... Kg4 {[%clk 0:00:02.9]}
65. Kxg6 {[%clk 0:00:17.8]} 65... Kxf4 {[%clk 0:00:03.8]} 66. Kh6 {[%clk
0:00:18.3]} 66... Ke3 {[%clk 0:00:02.7]} 67. g6 {[%clk 0:00:19.2]} 67... f4
{[%clk 0:00:03.6]} 68. g7 {[%clk 0:00:20.1]} 68... f3 {[%clk 0:00:04.3]} 69.
g8=Q {[%clk 0:00:21]} 69... f2 {[%clk 0:00:05.1]} 70. Qb3+ {[%clk 0:00:19.9]}
70... Ke2 {[%clk 0:00:05.3]} 71. Qc2+ {[%clk 0:00:20.2]} 71... Kf3 {[%clk
0:00:05.2]} 72. Qd3+ {[%clk 0:00:20.2]} 72... Kg2 {[%clk 0:00:05.7]} 73. Qe2
{[%clk 0:00:20.5]} 73... Kg1 {[%clk 0:00:05.5]} 74. Qe3 {[%clk 0:00:20.9]} 74...
Kg2 {[%clk 0:00:05.5]} 75. Qg5+ {[%clk 0:00:20.2]} 75... Kh2 {[%clk 0:00:06]}
76. Qf4+ {[%clk 0:00:18.8]} 76... Kg2 {[%clk 0:00:06.6]} 77. Qg4+ {[%clk
0:00:19]} 77... Kh2 {[%clk 0:00:07.1]} 78. Qf3 {[%clk 0:00:18.8]} 78... Kg1
{[%clk 0:00:07.6]} 79. Qg3+ {[%clk 0:00:18.8]} 79... Kh1 {[%clk 0:00:08.2]} 80.
Qxf2 {[%clk 0:00:18.5]} 1/2-1/2